[Event "Titled Tuesday Blitz March 14 Early 2023"]
[White "Aung Thant Zin"]
[Black "Kornyukov, Alexey"]
[WhiteFideId "13000063"]
[BlackFideId "4150457"]
[WhiteElo "2278"]
[BlackElo "2352"]
[Result "1-0"]
[Round "03"]
[TimeControl "180+2"]
[Date "2023.03.14"]
[WhiteClock "0:00:36"]
[BlackClock "0:00:20"]

1. e4 {[%clk 0:02:58]}  c5 {[%clk 0:02:59]} 2. Nf3 {[%clk 0:02:56]}  Nc6 {[%clk 0:02:59]} 3. Bb5 {[%clk 0:02:56]}  g6 {[%clk 0:02:58]} 4. O-O {[%clk 0:02:55]}  Bg7 {[%clk 0:02:58]} 5. c3 {[%clk 0:02:55]}  Nf6 {[%clk 0:02:58]} 6. Re1 {[%clk 0:02:51]}  d6 {[%clk 0:02:57]} 7. d4 {[%clk 0:02:50]}  O-O {[%clk 0:02:55]} 8. e5 {[%clk 0:02:39]}  dxe5 {[%clk 0:02:49]} 9. Bxc6 {[%clk 0:02:38]}  bxc6 {[%clk 0:02:43]} 10. Nxe5 {[%clk 0:02:38]}  Bb7 {[%clk 0:02:40]} 11. dxc5 {[%clk 0:02:32]}  Qxd1 {[%clk 0:02:23]} 12. Rxd1 {[%clk 0:02:31]}  Ne4 {[%clk 0:02:23]} 13. Nf3 {[%clk 0:02:24]}  Rad8 {[%clk 0:02:17]} 14. Re1 {[%clk 0:02:24]}  Nxc5 {[%clk 0:02:15]} 15. Na3 {[%clk 0:02:09]}  Nd3 {[%clk 0:02:10]} 16. Rxe7 {[%clk 0:02:02]}  Ba6 {[%clk 0:01:42]} 17. Be3 {[%clk 0:01:36]}  Nxb2 {[%clk 0:01:36]} 18. Rxa7 {[%clk 0:01:36]}  Ra8 {[%clk 0:01:30]} 19. Rxa8 {[%clk 0:01:34]}  Rxa8 {[%clk 0:01:27]} 20. Bd4 {[%clk 0:01:34]}  Bd3 {[%clk 0:01:18]} 21. Bxg7 {[%clk 0:01:21]}  Kxg7 {[%clk 0:01:16]} 22. Nb1 {[%clk 0:01:17]}  Na4 {[%clk 0:00:51]} 23. Nbd2 {[%clk 0:01:05]}  Nxc3 {[%clk 0:00:50]} 24. a3 {[%clk 0:01:05]}  Nb5 {[%clk 0:00:47]} 25. a4 {[%clk 0:01:04]}  Nc3 {[%clk 0:00:46]} 26. a5 {[%clk 0:01:03]}  Be2 {[%clk 0:00:42]} 27. Nd4 {[%clk 0:01:01]}  Bb5 {[%clk 0:00:39]} 28. h3 {[%clk 0:00:49]}  Ra6 {[%clk 0:00:32]} 29. N2b3 {[%clk 0:00:48]}  Bc4 {[%clk 0:00:30]} 30. Nc5 {[%clk 0:00:47]}  Ra8 {[%clk 0:00:30]} 31. Nxc6 {[%clk 0:00:42]}  Bb5 {[%clk 0:00:25]} 32. Nd4 {[%clk 0:00:40]}  Bc4 {[%clk 0:00:21]} 33. a6 {[%clk 0:00:36]}  Ne2+ {[%clk 0:00:20]} 34. Nxe2 {[%clk 0:00:36]}  Bxe2 {[%clk 0:00:21]} 35. a7 {[%clk 0:00:35]}  Kf6 {[%clk 0:00:20]} 36. Nd7+ {[%clk 0:00:35]}  Ke7 {[%clk 0:00:20]} 37. Nb6 {[%clk 0:00:36]} 1-0


[Site "https://www.chess.com"]

[Event "Titled Tuesday Blitz March 14 Early 2023"]
[White "Karas, Marek"]
[Black "Samaganova, Aleksandra"]
[WhiteFideId "14928558"]
[BlackFideId "13800221"]
[WhiteElo "2233"]
[BlackElo "1858"]
[Result "1-0"]
[Round "03"]
[TimeControl "180+2"]
[Date "2023.03.14"]
[WhiteClock "0:00:17"]
[BlackClock "0:00:05"]

1. d4 {[%clk 0:03:00]}  Nf6 {[%clk 0:02:55]} 2. Nf3 {[%clk 0:02:59]}  e6 {[%clk 0:02:54]} 3. c4 {[%clk 0:02:58]}  b6 {[%clk 0:02:53]} 4. a3 {[%clk 0:02:57]}  Bb7 {[%clk 0:02:51]} 5. Nc3 {[%clk 0:02:50]}  Be7 {[%clk 0:02:49]} 6. d5 {[%clk 0:02:41]}  d6 {[%clk 0:02:48]} 7. e4 {[%clk 0:02:40]}  e5 {[%clk 0:02:47]} 8. Bd3 {[%clk 0:02:38]}  Nbd7 {[%clk 0:02:45]} 9. b4 {[%clk 0:02:34]}  a5 {[%clk 0:02:40]} 10. Bb2 {[%clk 0:02:31]}  O-O {[%clk 0:02:39]} 11. O-O {[%clk 0:02:29]}  g6 {[%clk 0:01:48]} 12. Re1 {[%clk 0:02:21]}  Nh5 {[%clk 0:01:46]} 13. Bf1 {[%clk 0:02:18]}  Ng7 {[%clk 0:01:37]} 14. Nd2 {[%clk 0:02:13]}  f5 {[%clk 0:01:22]} 15. bxa5 {[%clk 0:02:10]}  Rxa5 {[%clk 0:01:18]} 16. Nb3 {[%clk 0:02:09]}  Ra8 {[%clk 0:01:17]} 17. a4 {[%clk 0:02:06]}  f4 {[%clk 0:00:42]} 18. a5 {[%clk 0:02:02]}  f3 {[%clk 0:00:36]} 19. g3 {[%clk 0:01:54]}  h5 {[%clk 0:00:31]} 20. axb6 {[%clk 0:01:51]}  cxb6 {[%clk 0:00:27]} 21. Rxa8 {[%clk 0:01:49]}  Qxa8 {[%clk 0:00:25]} 22. Nd2 {[%clk 0:01:41]}  Nc5 {[%clk 0:00:19]} 23. Nxf3 {[%clk 0:01:37]}  Bc8 {[%clk 0:00:19]} 24. Nd2 {[%clk 0:01:29]}  Bd7 {[%clk 0:00:17]} 25. Nb3 {[%clk 0:01:18]}  Qc8 {[%clk 0:00:16]} 26. Bc1 {[%clk 0:01:05]}  Bg4 {[%clk 0:00:15]} 27. Qc2 {[%clk 0:01:01]}  h4 {[%clk 0:00:12]} 28. Nxc5 {[%clk 0:01:00]}  bxc5 {[%clk 0:00:10]} 29. Be3 {[%clk 0:00:56]}  Bf3 {[%clk 0:00:09]} 30. Bg2 {[%clk 0:00:48]}  Qg4 {[%clk 0:00:08]} 31. Bxf3 {[%clk 0:00:47]}  Qxf3 {[%clk 0:00:06]} 32. Qe2 {[%clk 0:00:46]}  Qf6 {[%clk 0:00:06]} 33. Qg4 {[%clk 0:00:42]}  hxg3 {[%clk 0:00:05]} 34. hxg3 {[%clk 0:00:43]}  Nh5 {[%clk 0:00:03]} 35. Qe6+ {[%clk 0:00:41]}  Qxe6 {[%clk 0:00:03]} 36. dxe6 {[%clk 0:00:41]}  Rf6 {[%clk 0:00:02]} 37. Nd5 {[%clk 0:00:32]}  Rxe6 {[%clk 0:00:02]} 38. Rb1 {[%clk 0:00:30]}  Kf7 {[%clk 0:00:02]} 39. Rb7 {[%clk 0:00:29]}  Nf6 {[%clk 0:00:02]} 40. Nc7 {[%clk 0:00:24]}  g5 {[%clk 0:00:01]} 41. Nxe6 {[%clk 0:00:23]}  Kxe6 {[%clk 0:00:01]} 42. Bxg5 {[%clk 0:00:22]}  Bd8 {[%clk 0:00:01]} 43. Bxf6 {[%clk 0:00:22]}  Bxf6 {[%clk 0:00:02]} 44. f3 {[%clk 0:00:21]}  Bg5 {[%clk 0:00:02]} 45. Kf1 {[%clk 0:00:21]}  Be3 {[%clk 0:00:03]} 46. Ke2 {[%clk 0:00:21]}  Bd4 {[%clk 0:00:03]} 47. Kd3 {[%clk 0:00:21]}  Bf2 {[%clk 0:00:03]} 48. g4 {[%clk 0:00:20]}  Bh4 {[%clk 0:00:03]} 49. Rh7 {[%clk 0:00:19]}  Bg5 {[%clk 0:00:03]} 50. Rh5 {[%clk 0:00:19]}  Kf6 {[%clk 0:00:03]} 51. Kc3 {[%clk 0:00:16]}  Kg6 {[%clk 0:00:03]} 52. Kb3 {[%clk 0:00:16]}  Bd2 {[%clk 0:00:03]} 53. Ka4 {[%clk 0:00:16]}  Bf4 {[%clk 0:00:02]} 54. Kb5 {[%clk 0:00:16]}  Bg5 {[%clk 0:00:02]} 55. Kc6 {[%clk 0:00:17]}  Be7 {[%clk 0:00:03]} 56. Kd5 {[%clk 0:00:15]}  Bf8 {[%clk 0:00:03]} 57. Ke6 {[%clk 0:00:13]}  Kg7 {[%clk 0:00:03]} 58. Rf5 {[%clk 0:00:13]}  Kg8 {[%clk 0:00:02]} 59. Rxf8+ {[%clk 0:00:12]}  Kxf8 {[%clk 0:00:02]} 60. Kxd6 {[%clk 0:00:13]}  Kf7 {[%clk 0:00:02]} 61. Kxe5 {[%clk 0:00:14]}  Kg6 {[%clk 0:00:02]} 62. Kd5 {[%clk 0:00:14]}  Kg5 {[%clk 0:00:03]} 63. Kxc5 {[%clk 0:00:15]}  Kf4 {[%clk 0:00:03]} 64. Kd6 {[%clk 0:00:16]}  Kxf3 {[%clk 0:00:04]} 65. e5 {[%clk 0:00:16]}  Kxg4 {[%clk 0:00:05]} 66. e6 {[%clk 0:00:17]} 1-0


[Site "https://www.chess.com"]

[Event "Titled Tuesday Blitz March 14 Early 2023"]
[White "Fathy, Elameir"]
[Black "Agasarov, Benik"]
[WhiteFideId "10600396"]
[BlackFideId "13314823"]
[WhiteElo "2311"]
[BlackElo "2179"]
[Result "0-1"]
[Round "03"]
[TimeControl "180+2"]
[Date "2023.03.14"]
[WhiteClock "0:01:20"]
[BlackClock "0:02:42"]

1. d4 {[%clk 0:03:00]}  Nf6 {[%clk 0:03:00]} 2. c4 {[%clk 0:03:01]}  e6 {[%clk 0:02:59]} 3. Nf3 {[%clk 0:03:01]}  Bb4+ {[%clk 0:02:58]} 4. Bd2 {[%clk 0:03:01]}  Qe7 {[%clk 0:02:59]} 5. e3 {[%clk 0:03:01]}  O-O {[%clk 0:02:58]} 6. Bd3 {[%clk 0:03:01]}  Bxd2+ {[%clk 0:02:58]} 7. Qxd2 {[%clk 0:03:01]}  d6 {[%clk 0:02:59]} 8. Nc3 {[%clk 0:02:55]}  e5 {[%clk 0:02:59]} 9. Bc2 {[%clk 0:02:51]}  Bg4 {[%clk 0:02:57]} 10. dxe5 {[%clk 0:02:22]}  dxe5 {[%clk 0:02:56]} 11. h3 {[%clk 0:02:17]}  Rd8 {[%clk 0:02:54]} 12. Qe2 {[%clk 0:02:02]}  Bh5 {[%clk 0:02:52]} 13. g4 {[%clk 0:01:56]}  Bg6 {[%clk 0:02:52]} 14. Bxg6 {[%clk 0:01:50]}  hxg6 {[%clk 0:02:53]} 15. Ng5 {[%clk 0:01:47]}  Nbd7 {[%clk 0:02:47]} 16. O-O-O {[%clk 0:01:46]}  c6 {[%clk 0:02:47]} 17. h4 {[%clk 0:01:45]}  Nc5 {[%clk 0:02:45]} 18. h5 {[%clk 0:01:38]}  gxh5 {[%clk 0:02:44]} 19. gxh5 {[%clk 0:01:39]}  Rxd1+ {[%clk 0:02:44]} 20. Qxd1 {[%clk 0:01:30]}  Rd8 {[%clk 0:02:44]} 21. Qf3 {[%clk 0:01:30]}  Nd3+ {[%clk 0:02:44]} 22. Kb1 {[%clk 0:01:30]}  Qb4 {[%clk 0:02:43]} 23. Nd1 {[%clk 0:01:28]}  Qd2 {[%clk 0:02:42]} 24. h6 {[%clk 0:01:20]}  Qc1# {[%clk 0:02:42]} 0-1


[Site "https://www.chess.com"]

[Event "Titled Tuesday Blitz March 14 Early 2023"]
[White "Ahn, Hongjin"]
[Black "Jimenez, Joaquin"]
[WhiteFideId "13201492"]
[BlackFideId "109860"]
[WhiteElo "2182"]
[BlackElo "2163"]
[Result "1-0"]
[Round "03"]
[TimeControl "180+2"]
[Date "2023.03.14"]
[WhiteClock "0:00:15"]
[BlackClock "0:01:03"]

1. b3 {[%clk 0:02:21]}  e5 {[%clk 0:02:58]} 2. Bb2 {[%clk 0:01:30]}  Nc6 {[%clk 0:02:58]} 3. e3 {[%clk 0:01:28]}  Nf6 {[%clk 0:02:56]} 4. Bb5 {[%clk 0:01:26]}  Bd6 {[%clk 0:02:56]} 5. Nc3 {[%clk 0:01:25]}  O-O {[%clk 0:02:53]} 6. Nge2 {[%clk 0:01:24]}  a6 {[%clk 0:02:51]} 7. Bd3 {[%clk 0:01:15]}  Re8 {[%clk 0:02:49]} 8. Ng3 {[%clk 0:01:12]}  Bf8 {[%clk 0:02:47]} 9. e4 {[%clk 0:01:07]}  d6 {[%clk 0:02:39]} 10. O-O {[%clk 0:01:06]}  Nd4 {[%clk 0:02:32]} 11. Nce2 {[%clk 0:01:01]}  Ne6 {[%clk 0:02:31]} 12. Re1 {[%clk 0:00:55]}  c5 {[%clk 0:02:29]} 13. c3 {[%clk 0:00:54]}  b5 {[%clk 0:02:29]} 14. Bc2 {[%clk 0:00:53]}  Bb7 {[%clk 0:02:28]} 15. d4 {[%clk 0:00:52]}  Qc7 {[%clk 0:02:27]} 16. d5 {[%clk 0:00:51]}  Nf4 {[%clk 0:02:25]} 17. Nxf4 {[%clk 0:00:46]}  exf4 {[%clk 0:02:25]} 18. Nh5 {[%clk 0:00:46]}  Nxh5 {[%clk 0:02:23]} 19. Qxh5 {[%clk 0:00:47]}  c4 {[%clk 0:02:18]} 20. b4 {[%clk 0:00:42]}  g6 {[%clk 0:02:17]} 21. Qh4 {[%clk 0:00:38]}  Bg7 {[%clk 0:02:16]} 22. Qxf4 {[%clk 0:00:38]}  a5 {[%clk 0:02:16]} 23. a3 {[%clk 0:00:38]}  Qe7 {[%clk 0:02:01]} 24. Qd2 {[%clk 0:00:29]}  Qh4 {[%clk 0:01:51]} 25. h3 {[%clk 0:00:19]}  Bc8 {[%clk 0:01:49]} 26. Re3 {[%clk 0:00:19]}  Bh6 {[%clk 0:01:45]} 27. Rae1 {[%clk 0:00:18]}  axb4 {[%clk 0:01:43]} 28. cxb4 {[%clk 0:00:18]}  f6 {[%clk 0:01:35]} 29. Qd4 {[%clk 0:00:16]}  Bxe3 {[%clk 0:01:31]} 30. Rxe3 {[%clk 0:00:17]}  Re5 {[%clk 0:01:23]} 31. Qb6 {[%clk 0:00:16]}  Bf5 {[%clk 0:01:12]} 32. Bxe5 {[%clk 0:00:12]}  fxe5 {[%clk 0:01:09]} 33. exf5 {[%clk 0:00:13]}  gxf5 {[%clk 0:01:07]} 34. Qxd6 {[%clk 0:00:13]}  e4 {[%clk 0:01:06]} 35. Rg3+ {[%clk 0:00:13]}  Kf7 {[%clk 0:01:03]} 36. Qe6+ {[%clk 0:00:14]}  Kf8 {[%clk 0:01:03]} 37. Rg8# {[%clk 0:00:15]} 1-0


[Site "https://www.chess.com"]

[Event "Titled Tuesday Blitz March 14 Early 2023"]
[White "Miszler, Levente"]
[Black "Smith, Garrett L"]
[WhiteFideId "763276"]
[BlackFideId "2024829"]
[WhiteElo "2176"]
[BlackElo "2264"]
[Result "1-0"]
[Round "03"]
[TimeControl "180+2"]
[Date "2023.03.14"]
[WhiteClock "0:00:14"]
[BlackClock "0:00:26"]

1. Nf3 {[%clk 0:03:00]}  c5 {[%clk 0:03:00]} 2. c4 {[%clk 0:02:59]}  Nc6 {[%clk 0:03:00]} 3. Nc3 {[%clk 0:02:56]}  e5 {[%clk 0:03:00]} 4. g3 {[%clk 0:02:55]}  Nf6 {[%clk 0:03:00]} 5. d3 {[%clk 0:02:54]}  h6 {[%clk 0:02:59]} 6. Bg2 {[%clk 0:02:54]}  Be7 {[%clk 0:02:59]} 7. O-O {[%clk 0:02:54]}  d6 {[%clk 0:02:57]} 8. a3 {[%clk 0:02:54]}  Be6 {[%clk 0:02:56]} 9. Rb1 {[%clk 0:02:51]}  a5 {[%clk 0:02:55]} 10. Ne1 {[%clk 0:02:50]}  d5 {[%clk 0:02:53]} 11. cxd5 {[%clk 0:02:49]}  Nxd5 {[%clk 0:02:54]} 12. Nc2 {[%clk 0:02:49]}  Rb8 {[%clk 0:02:52]} 13. Nxd5 {[%clk 0:02:44]}  Bxd5 {[%clk 0:02:51]} 14. b4 {[%clk 0:02:42]}  cxb4 {[%clk 0:02:44]} 15. axb4 {[%clk 0:02:43]}  Bxg2 {[%clk 0:02:38]} 16. Kxg2 {[%clk 0:02:41]}  Nxb4 {[%clk 0:02:32]} 17. Nxb4 {[%clk 0:02:41]}  Bxb4 {[%clk 0:02:27]} 18. Bd2 {[%clk 0:02:18]}  Qd5+ {[%clk 0:02:15]} 19. Kg1 {[%clk 0:02:18]}  Bxd2 {[%clk 0:02:13]} 20. Qxd2 {[%clk 0:02:19]}  O-O {[%clk 0:02:13]} 21. Rb6 {[%clk 0:02:15]}  Rfd8 {[%clk 0:02:04]} 22. Qb2 {[%clk 0:02:00]}  Rd7 {[%clk 0:02:04]} 23. Rc1 {[%clk 0:01:56]}  Qd4 {[%clk 0:01:46]} 24. Qb5 {[%clk 0:01:44]}  a4 {[%clk 0:01:42]} 25. Rc4 {[%clk 0:01:40]}  Qa1+ {[%clk 0:01:40]} 26. Kg2 {[%clk 0:01:40]}  Re7 {[%clk 0:01:37]} 27. Rxa4 {[%clk 0:01:36]}  Qc1 {[%clk 0:01:33]} 28. Rc4 {[%clk 0:01:33]}  Qg5 {[%clk 0:01:32]} 29. Qd5 {[%clk 0:01:27]}  Qf5 {[%clk 0:01:27]} 30. Rcb4 {[%clk 0:01:24]}  Qc8 {[%clk 0:01:25]} 31. Qd6 {[%clk 0:01:21]}  Qc7 {[%clk 0:01:20]} 32. Qd5 {[%clk 0:01:08]}  Kf8 {[%clk 0:01:17]} 33. Qb5 {[%clk 0:01:05]}  g6 {[%clk 0:01:14]} 34. Rc4 {[%clk 0:01:04]}  Qd7 {[%clk 0:01:13]} 35. Qc5 {[%clk 0:01:00]}  h5 {[%clk 0:01:09]} 36. Rd6 {[%clk 0:00:59]}  Qe8 {[%clk 0:01:06]} 37. Qd5 {[%clk 0:00:52]}  Kg8 {[%clk 0:01:04]} 38. Rb4 {[%clk 0:00:42]}  b5 {[%clk 0:01:00]} 39. Rxg6+ {[%clk 0:00:41]}  Kh7 {[%clk 0:00:56]} 40. Rd6 {[%clk 0:00:40]}  f5 {[%clk 0:00:44]} 41. Rh4 {[%clk 0:00:35]}  Rg7 {[%clk 0:00:43]} 42. Qf3 {[%clk 0:00:26]}  Rg5 {[%clk 0:00:43]} 43. Qd5 {[%clk 0:00:20]}  Rg7 {[%clk 0:00:38]} 44. Re6 {[%clk 0:00:19]}  Qf7 {[%clk 0:00:35]} 45. Qxe5 {[%clk 0:00:18]}  b4 {[%clk 0:00:34]} 46. Rf6 {[%clk 0:00:17]}  Qb7+ {[%clk 0:00:30]} 47. f3 {[%clk 0:00:17]}  b3 {[%clk 0:00:29]} 48. Qxf5+ {[%clk 0:00:17]}  Kg8 {[%clk 0:00:30]} 49. Qxh5 {[%clk 0:00:16]}  Rh7 {[%clk 0:00:28]} 50. Rg6+ {[%clk 0:00:12]}  Kh8 {[%clk 0:00:26]} 51. Rh6 {[%clk 0:00:12]}  Rxh6 {[%clk 0:00:24]} 52. Qxh6+ {[%clk 0:00:13]}  Kg8 {[%clk 0:00:25]} 53. Qh8+ {[%clk 0:00:14]}  Kf7 {[%clk 0:00:25]} 54. Rh7+ {[%clk 0:00:14]}  Ke6 {[%clk 0:00:26]} 55. Rxb7 {[%clk 0:00:14]} 1-0


[Site "https://www.chess.com"]

[Event "Titled Tuesday Blitz March 14 Early 2023"]
[White "Jovic, Stanoje"]
[Black "Botez, Alexandra"]
[WhiteFideId "905020"]
[BlackFideId "2603365"]
[WhiteElo "2236"]
[BlackElo "2059"]
[Result "1-0"]
[Round "03"]
[TimeControl "180+2"]
[Date "2023.03.14"]
[WhiteClock "0:00:13"]
[BlackClock "0:00:01"]

1. c4 {[%clk 0:03:00]}  e5 {[%clk 0:02:56]} 2. g3 {[%clk 0:02:59]}  Nf6 {[%clk 0:02:52]} 3. Bg2 {[%clk 0:02:58]}  Bc5 {[%clk 0:02:51]} 4. Nf3 {[%clk 0:02:56]}  d6 {[%clk 0:02:50]} 5. O-O {[%clk 0:02:55]}  O-O {[%clk 0:02:50]} 6. e3 {[%clk 0:02:56]}  e4 {[%clk 0:02:41]} 7. Ng5 {[%clk 0:02:50]}  Re8 {[%clk 0:02:38]} 8. Nc3 {[%clk 0:02:49]}  Bf5 {[%clk 0:02:36]} 9. Qc2 {[%clk 0:02:45]}  Nc6 {[%clk 0:02:34]} 10. Ngxe4 {[%clk 0:02:37]}  Nb4 {[%clk 0:02:31]} 11. Qb1 {[%clk 0:02:34]}  Nxe4 {[%clk 0:02:26]} 12. Bxe4 {[%clk 0:02:29]}  Bxe4 {[%clk 0:02:17]} 13. Nxe4 {[%clk 0:02:28]}  a5 {[%clk 0:02:06]} 14. a3 {[%clk 0:02:20]}  Nc6 {[%clk 0:02:06]} 15. d4 {[%clk 0:02:18]}  Ba7 {[%clk 0:02:05]} 16. b4 {[%clk 0:02:14]}  d5 {[%clk 0:02:00]} 17. cxd5 {[%clk 0:02:06]}  Qxd5 {[%clk 0:01:59]} 18. Nd2 {[%clk 0:02:01]}  Bxd4 {[%clk 0:01:45]} 19. b5 {[%clk 0:01:47]}  Bxa1 {[%clk 0:01:34]} 20. bxc6 {[%clk 0:01:39]}  Bc3 {[%clk 0:01:32]} 21. cxb7 {[%clk 0:01:35]}  Rab8 {[%clk 0:01:31]} 22. Qc2 {[%clk 0:01:31]}  Bxd2 {[%clk 0:01:29]} 23. Bxd2 {[%clk 0:01:31]}  Rxb7 {[%clk 0:01:27]} 24. Bc3 {[%clk 0:01:25]}  h6 {[%clk 0:01:23]} 25. Bd4 {[%clk 0:01:20]}  Reb8 {[%clk 0:01:20]} 26. Rc1 {[%clk 0:01:15]}  Qb3 {[%clk 0:01:06]} 27. Qf5 {[%clk 0:01:05]}  Qe6 {[%clk 0:00:52]} 28. Qxa5 {[%clk 0:01:01]}  Qd7 {[%clk 0:00:44]} 29. Qc3 {[%clk 0:00:56]}  f6 {[%clk 0:00:43]} 30. Qc4+ {[%clk 0:00:51]}  Qf7 {[%clk 0:00:42]} 31. Qc6 {[%clk 0:00:46]}  Rb1 {[%clk 0:00:38]} 32. h4 {[%clk 0:00:42]}  Rxc1+ {[%clk 0:00:38]} 33. Qxc1 {[%clk 0:00:41]}  Rb3 {[%clk 0:00:34]} 34. a4 {[%clk 0:00:38]}  Rb7 {[%clk 0:00:30]} 35. a5 {[%clk 0:00:37]}  Qa2 {[%clk 0:00:25]} 36. Qc6 {[%clk 0:00:30]}  Rb1+ {[%clk 0:00:25]} 37. Kg2 {[%clk 0:00:29]}  Qxa5 {[%clk 0:00:06]} 38. Qe8+ {[%clk 0:00:27]}  Kh7 {[%clk 0:00:05]} 39. Qe4+ {[%clk 0:00:27]}  f5 {[%clk 0:00:04]} 40. Qxb1 {[%clk 0:00:26]}  Qd5+ {[%clk 0:00:04]} 41. Kh2 {[%clk 0:00:26]}  Qf3 {[%clk 0:00:05]} 42. Qc2 {[%clk 0:00:25]}  h5 {[%clk 0:00:03]} 43. Kg1 {[%clk 0:00:24]}  Qg4 {[%clk 0:00:02]} 44. Qxc7 {[%clk 0:00:23]}  Qd1+ {[%clk 0:00:02]} 45. Kg2 {[%clk 0:00:22]}  Qg4 {[%clk 0:00:02]} 46. Qf4 {[%clk 0:00:20]}  Qg6 {[%clk 0:00:02]} 47. Qg5 {[%clk 0:00:20]}  Qc6+ {[%clk 0:00:01]} 48. Kh2 {[%clk 0:00:19]}  g6 {[%clk 0:00:02]} 49. g4 {[%clk 0:00:17]}  fxg4 {[%clk 0:00:01]} 50. Qe5 {[%clk 0:00:13]} 1-0


[Site "https://www.chess.com"]

[Event "Titled Tuesday Blitz March 14 Early 2023"]
[White "Rodriguez Santiago, Jaime"]
[Black "Matutururu, Maxman"]
[WhiteFideId "3100898"]
[BlackFideId "11004487"]
[WhiteElo "2025"]
[BlackElo "2439"]
[Result "0-1"]
[Round "03"]
[TimeControl "180+2"]
[Date "2023.03.14"]
[WhiteClock "0:00:33"]
[BlackClock "0:01:11"]

1. c4 {[%clk 0:03:00]}  c6 {[%clk 0:02:59]} 2. d4 {[%clk 0:03:00]}  d5 {[%clk 0:02:59]} 3. cxd5 {[%clk 0:03:00]}  cxd5 {[%clk 0:02:59]} 4. Bf4 {[%clk 0:03:01]}  Nc6 {[%clk 0:02:59]} 5. e3 {[%clk 0:03:02]}  Bf5 {[%clk 0:02:57]} 6. Nc3 {[%clk 0:02:59]}  Nf6 {[%clk 0:02:54]} 7. Qb3 {[%clk 0:02:53]}  Na5 {[%clk 0:02:53]} 8. Qa4+ {[%clk 0:02:52]}  Bd7 {[%clk 0:02:53]} 9. Qc2 {[%clk 0:02:47]}  Rc8 {[%clk 0:02:52]} 10. Bd3 {[%clk 0:02:43]}  e6 {[%clk 0:02:52]} 11. Nf3 {[%clk 0:02:40]}  b5 {[%clk 0:02:49]} 12. a3 {[%clk 0:02:27]}  Nc4 {[%clk 0:02:47]} 13. O-O {[%clk 0:02:22]}  a5 {[%clk 0:02:44]} 14. Qe2 {[%clk 0:02:19]}  b4 {[%clk 0:02:41]} 15. axb4 {[%clk 0:02:14]}  axb4 {[%clk 0:02:40]} 16. Nd1 {[%clk 0:02:12]}  Be7 {[%clk 0:02:38]} 17. Ne5 {[%clk 0:02:06]}  Nxe5 {[%clk 0:02:33]} 18. Bxe5 {[%clk 0:02:03]}  O-O {[%clk 0:02:31]} 19. f4 {[%clk 0:01:57]}  Ne4 {[%clk 0:02:26]} 20. Bxe4 {[%clk 0:01:35]}  dxe4 {[%clk 0:02:27]} 21. Ra6 {[%clk 0:01:34]}  f6 {[%clk 0:01:56]} 22. Bd6 {[%clk 0:01:32]}  Bxd6 {[%clk 0:01:56]} 23. Rxd6 {[%clk 0:01:33]}  Bb5 {[%clk 0:01:56]} 24. Rxd8 {[%clk 0:01:20]}  Bxe2 {[%clk 0:01:55]} 25. Rxf8+ {[%clk 0:01:13]}  Kxf8 {[%clk 0:01:54]} 26. Re1 {[%clk 0:01:13]}  Rc2 {[%clk 0:01:54]} 27. Nf2 {[%clk 0:00:58]}  f5 {[%clk 0:01:34]} 28. b3 {[%clk 0:00:50]}  Rb2 {[%clk 0:01:32]} 29. h3 {[%clk 0:00:49]}  Bd3 {[%clk 0:01:30]} 30. Nxd3 {[%clk 0:00:46]}  exd3 {[%clk 0:01:29]} 31. Rd1 {[%clk 0:00:46]}  Rxb3 {[%clk 0:01:28]} 32. Kf2 {[%clk 0:00:46]}  Ke7 {[%clk 0:01:25]} 33. Kf3 {[%clk 0:00:43]}  Kd6 {[%clk 0:01:24]} 34. e4 {[%clk 0:00:43]}  d2+ {[%clk 0:01:16]} 35. Ke2 {[%clk 0:00:38]}  fxe4 {[%clk 0:01:16]} 36. Rxd2 {[%clk 0:00:39]}  Kd5 {[%clk 0:01:15]} 37. Rd1 {[%clk 0:00:34]}  Rb2+ {[%clk 0:01:14]} 38. Kf1 {[%clk 0:00:33]}  e3 {[%clk 0:01:11]} 0-1


[Site "https://www.chess.com"]

[Event "Titled Tuesday Blitz March 14 Early 2023"]
[White "Silva, Caio Henrique Angelico"]
[Black "Chakravarthi Reddy, M"]
[WhiteFideId "22777210"]
[BlackFideId "25009532"]
[WhiteElo "2096"]
[BlackElo "2201"]
[Result "0-1"]
[Round "03"]
[TimeControl "180+2"]
[Date "2023.03.14"]
[WhiteClock "0:01:52"]
[BlackClock "0:00:28"]

1. d4 {[%clk 0:03:00]}  d5 {[%clk 0:02:59]} 2. Nf3 {[%clk 0:02:58]}  Nf6 {[%clk 0:02:59]} 3. g3 {[%clk 0:02:59]}  c5 {[%clk 0:02:59]} 4. Bg2 {[%clk 0:03:00]}  cxd4 {[%clk 0:02:59]} 5. O-O {[%clk 0:03:01]}  h6 {[%clk 0:02:59]} 6. b3 {[%clk 0:03:00]}  Nc6 {[%clk 0:02:55]} 7. Bb2 {[%clk 0:03:00]}  e5 {[%clk 0:02:53]} 8. c3 {[%clk 0:02:54]}  dxc3 {[%clk 0:02:49]} 9. Nxc3 {[%clk 0:02:55]}  Be7 {[%clk 0:02:38]} 10. Rc1 {[%clk 0:02:55]}  O-O {[%clk 0:02:38]} 11. Na4 {[%clk 0:02:54]}  e4 {[%clk 0:02:20]} 12. Nd4 {[%clk 0:02:53]}  Nxd4 {[%clk 0:02:19]} 13. Qxd4 {[%clk 0:02:54]}  b6 {[%clk 0:02:08]} 14. Rfd1 {[%clk 0:02:51]}  Bb7 {[%clk 0:02:07]} 15. Nc3 {[%clk 0:02:49]}  Re8 {[%clk 0:02:07]} 16. e3 {[%clk 0:02:49]}  Bd6 {[%clk 0:02:03]} 17. Nb5 {[%clk 0:02:48]}  Be5 {[%clk 0:02:02]} 18. Qd2 {[%clk 0:02:46]}  Bxb2 {[%clk 0:01:56]} 19. Qxb2 {[%clk 0:02:47]}  Re7 {[%clk 0:01:37]} 20. Nd4 {[%clk 0:02:47]}  Rc8 {[%clk 0:01:33]} 21. Bh3 {[%clk 0:02:46]}  Rxc1 {[%clk 0:01:33]} 22. Rxc1 {[%clk 0:02:47]}  Rc7 {[%clk 0:01:32]} 23. Rd1 {[%clk 0:02:46]}  a6 {[%clk 0:01:23]} 24. Bf1 {[%clk 0:02:41]}  Ng4 {[%clk 0:01:08]} 25. Bh3 {[%clk 0:02:35]}  Ne5 {[%clk 0:01:05]} 26. Bg2 {[%clk 0:02:30]}  Nd3 {[%clk 0:01:04]} 27. Qa1 {[%clk 0:02:24]}  Qf6 {[%clk 0:00:48]} 28. f3 {[%clk 0:02:15]}  Qg5 {[%clk 0:00:49]} 29. f4 {[%clk 0:02:14]}  Qf6 {[%clk 0:00:47]} 30. Bf1 {[%clk 0:02:14]}  Nb4 {[%clk 0:00:40]} 31. Rc1 {[%clk 0:02:09]}  Qd8 {[%clk 0:00:37]} 32. Nf5 {[%clk 0:02:02]}  Rxc1 {[%clk 0:00:30]} 33. Qxc1 {[%clk 0:02:02]}  Qc8 {[%clk 0:00:31]} 34. Qb2 {[%clk 0:01:58]}  Qxf5 {[%clk 0:00:30]} 35. Qc3 {[%clk 0:01:54]}  Nc6 {[%clk 0:00:28]} 36. b4 {[%clk 0:01:52]}  d4 {[%clk 0:00:29]} 37. exd4 {[%clk 0:01:52]}  Qd5 {[%clk 0:00:28]} 0-1


[Site "https://www.chess.com"]